bitfinex/quotes_BTCUSD_20260110
["timestamp","ask_amount","ask_price","bid_price","bid_amount"]
[1768007762237,0.0002,90655.0,90650.0,0.04722794]
[1768007763766,0.0002,90655.0,90650.0,0.04707793]
[1768007764185,0.0002,90655.0,90650.0,0.05795936]
[1768007765092,0.0002,90655.0,90650.0,0.04692793]
[1768007765329,0.0002,90655.0,90650.0,0.05795936]
[1768007765477,0.0002,90655.0,90652.0,0.04799862]
[1768007765892,0.0003493,90656.0,90652.0,0.04799862]
[1768007766133,0.03,90661.0,90656.0,0.04799862]
[1768007766293,0.03,90661.0,90652.0,0.01103119]
[1768007766294,0.03,90661.0,90658.0,0.04799862]
[1768007767086,0.00038215,90665.0,90658.0,0.04799862]
[1768007769869,0.00038215,90665.0,90658.0,0.04784863]
[1768007771767,0.00038215,90665.0,90658.0,0.05887909]
[1768007771968,0.00038215,90665.0,90658.0,0.04784863]
[1768007772210,0.00038215,90665.0,90658.0,0.05887909]
[1768007772413,0.03,90662.0,90660.0,0.04799862]
[1768007775128,0.03,90661.0,90660.0,0.04799862]
[1768007776142,0.03,90661.0,90660.0,0.05902884]
[1768007776324,0.03,90661.0,90660.0,0.05887886]
[1768007776724,0.03,90661.0,90660.0,0.05872888]
[1768007776962,0.03,90661.0,90660.0,0.11387999]
[1768007777170,0.00038215,90665.0,90663.0,0.04799862]
[1768007778297,0.00038215,90665.0,90662.0,0.01102997]
[1768007778464,0.00038215,90665.0,90658.0,0.01103046]
[1768007778862,0.00073486,90665.0,90657.0,0.01103058]
[1768007779476,0.00073486,90665.0,90658.0,0.01103046]
[1768007779925,0.00073486,90665.0,90660.0,0.01103022]
[1768007780187,0.00073486,90665.0,90659.0,0.01103034]
[1768007780464,0.00073486,90665.0,90661.0,0.0110301]
[1768007780602,0.00073486,90665.0,90662.0,0.01102997]
[1768007781717,0.00073486,90665.0,90661.0,0.0110301]
[1768007782297,0.00073486,90665.0,90662.0,0.01102997]
[1768007782515,0.00073486,90665.0,90662.0,0.05902859]
[1768007782951,0.00073486,90665.0,90662.0,0.04799862]
[1768007784267,0.00073486,90665.0,90662.0,0.05902859]
[1768007784473,0.00073486,90665.0,90662.0,0.04799862]
[1768007785436,0.00073486,90665.0,90662.0,0.05902859]
[1768007785639,0.00073486,90665.0,90662.0,0.04799862]
[1768007788242,0.00073486,90665.0,90662.0,0.04702262]
[1768007789032,0.00073486,90665.0,90658.0,0.01103046]
[1768007790697,0.00073486,90665.0,90659.0,0.01103034]
[1768007791403,0.00073486,90665.0,90658.0,0.01103046]
[1768007792000,0.00073486,90665.0,90659.0,0.01103034]
[1768007792445,0.00073486,90665.0,90658.0,0.01103046]
[1768007792606,0.00073486,90665.0,90659.0,0.01103034]
[1768007793400,0.00073486,90665.0,90660.0,0.04609747]
[1768007795057,0.00073486,90665.0,90660.0,0.05712769]
[1768007795275,0.00073486,90665.0,90660.0,0.04609747]
[1768007798625,0.00073486,90665.0,90653.0,0.02208]
[1768007798833,0.00073486,90665.0,90653.0,0.07920854]
[1768007798834,0.03,90664.0,90653.0,0.07920854]
[1768007799032,0.03,90664.0,90653.0,0.06817747]
[1768007799244,0.03,90664.0,90653.0,0.07920854]
[1768007799460,0.03,90664.0,90654.0,0.01103095]
[1768007799656,0.03,90664.0,90655.0,0.01103083]
[1768007799859,0.03,90663.0,90655.0,0.01103083]
[1768007800060,0.03,90663.0,90654.0,0.01103095]
[1768007800260,0.03,90663.0,90653.0,0.07920854]
[1768007800484,0.03,90663.0,90655.0,0.01103083]
[1768007800680,0.00073486,90665.0,90655.0,0.01103083]
[1768007800946,0.00073486,90665.0,90654.0,0.01103095]
[1768007801148,0.00073486,90665.0,90655.0,0.01103083]
[1768007802580,0.00073486,90665.0,90656.0,0.0110307]
[1768007802776,0.00073486,90665.0,90655.0,0.01103083]
[1768007802930,0.00073486,90665.0,90656.0,0.0110307]
[1768007803933,0.00073486,90665.0,90655.0,0.01103083]
[1768007804537,0.00073486,90665.0,90653.0,0.07920854]
[1768007805011,0.00073486,90665.0,90654.0,0.01103095]
[1768007805213,0.03073486,90665.0,90655.0,0.01103083]
[1768007805454,0.03073486,90665.0,90654.0,0.01103095]
[1768007805455,0.03073486,90665.0,90653.0,0.06817747]
[1768007805636,0.07860072,90656.0,90653.0,0.02208]
[1768007806043,0.03,90656.0,90653.0,0.02208]
[1768007806602,0.03,90659.0,90653.0,0.02208]
[1768007806824,0.04860072,90652.0,90639.0,0.21439657]
[1768007807020,0.03,90649.0,90646.0,0.01103192]
[1768007807248,0.04860072,90655.0,90646.0,0.01103192]
[1768007808019,0.04860072,90655.0,90647.0,0.0110318]
[1768007808227,0.03,90654.0,90647.0,0.0110318]
[1768007808915,0.03,90654.0,90649.0,0.01103156]
[1768007810265,0.03,90654.0,90650.0,0.01103143]
[1768007810465,0.03,90654.0,90651.0,0.01103131]
[1768007810668,0.03,90654.0,90650.0,0.01103143]
[1768007811662,0.03,90654.0,90651.0,0.01103131]
[1768007813330,0.03,90654.0,90650.0,0.01103143]
[1768007813559,0.03,90654.0,90651.0,0.01103131]
[1768007813686,0.03,90654.0,90647.0,0.0110318]
[1768007814497,0.03,90654.0,90646.0,0.01103192]
[1768007814899,0.03,90654.0,90647.0,0.0110318]
[1768007815529,0.27410228,90660.0,90647.0,0.0110318]
[1768007815530,0.03,90653.0,90649.0,0.01103156]
[1768007815724,0.30826974,90660.0,90653.0,0.000999]
[1768007815954,0.04519768,90660.0,90653.0,0.000999]
[1768007816157,0.04519768,90660.0,90650.0,0.01103143]
[1768007816317,0.30826974,90660.0,90650.0,0.01103143]
[1768007816516,0.30826974,90660.0,90651.0,0.01103131]
[1768007816716,0.03,90659.0,90650.0,0.01103143]
[1768007816935,0.03,90659.0,90653.0,0.01103107]
[1768007817338,0.03,90659.0,90652.0,0.01103119]
[1768007817546,0.03,90659.0,90651.0,0.01103131]
[1768007817740,0.03,90659.0,90652.0,0.01103119]
[1768007817942,0.03,90659.0,90651.0,0.01103131]
[1768007818259,0.03,90659.0,90652.0,0.01103119]
[1768007818822,0.03,90659.0,90651.0,0.01103131]
[1768007819073,0.03,90659.0,90650.0,0.01103143]
[1768007819486,0.03,90659.0,90651.0,0.01103131]
[1768007820241,0.03,90659.0,90652.0,0.01103119]
[1768007820409,0.03,90659.0,90655.0,0.01103083]
[1768007820599,0.03,90659.0,90652.0,0.01103119]
[1768007820600,0.03,90659.0,90654.0,0.01103095]
[1768007820820,0.03,90659.0,90655.0,0.01103083]
[1768007821063,0.03,90659.0,90654.0,0.01103095]
[1768007821378,0.00073486,90665.0,90659.0,0.000999]
[1768007821520,0.00073486,90665.0,90659.0,0.01103034]
[1768007822019,0.00073486,90665.0,90658.0,0.01103046]
[1768007822222,0.00073486,90665.0,90657.0,0.01103058]
[1768007822437,0.00073486,90665.0,90654.0,0.11123643]
[1768007822630,0.00073486,90665.0,90656.0,0.0110307]
[1768007823063,0.00073486,90665.0,90655.0,0.01103083]
[1768007823696,0.00073486,90665.0,90656.0,0.0110307]
[1768007825593,0.00073486,90665.0,90657.0,0.01103058]
[1768007825801,0.00073486,90665.0,90656.0,0.0110307]
[1768007826356,0.00073486,90665.0,90657.0,0.01103058]
[1768007827022,0.00073486,90665.0,90658.0,0.01103046]
[1768007827322,0.00073486,90665.0,90657.0,0.01103058]
[1768007827522,0.00073486,90665.0,90658.0,0.01103046]
[1768007828637,0.00073486,90665.0,90659.0,0.01103034]
[1768007829704,0.00073486,90665.0,90658.0,0.01103046]
[1768007831454,0.00073486,90665.0,90659.0,0.01103034]
[1768007831653,0.000999,90659.0,90654.0,0.04505072]
[1768007832080,0.00073486,90665.0,90654.0,0.04505072]
[1768007832316,0.03,90663.0,90651.0,0.02208]
[1768007832514,0.03,90663.0,90652.0,0.01103119]
[1768007832947,0.03,90663.0,90653.0,0.01103107]
[1768007833160,0.03,90663.0,90655.0,0.01103083]
[1768007833365,0.03,90662.0,90653.0,0.01103107]
[1768007833562,0.03,90662.0,90655.0,0.01103083]
[1768007833769,0.03,90662.0,90654.0,0.01103095]
[1768007834512,0.00073486,90665.0,90655.0,0.01103083]
[1768007836982,0.00073486,90665.0,90656.0,0.0110307]
[1768007837726,0.00073486,90665.0,90655.0,0.01103083]
[1768007840646,0.00073486,90665.0,90653.0,0.01103107]
[1768007841448,0.03073486,90665.0,90653.0,0.060049]
[1768007841619,0.03073486,90665.0,90657.0,0.01103058]
[1768007841766,0.03073486,90665.0,90658.0,0.01103046]
[1768007842759,0.03,90664.0,90658.0,0.01103046]
[1768007842921,0.03,90664.0,90657.0,0.01103058]
[1768007843113,0.03,90664.0,90657.0,0.06004851]
[1768007843304,0.03,90664.0,90659.0,0.06004827]
[1768007843649,0.0002,90669.0,90660.0,0.06004815]
[1768007843853,0.0002,90669.0,90661.0,0.0110301]
[1768007844407,0.0002,90669.0,90662.0,0.01102997]
[1768007845275,0.0002,90669.0,90663.0,0.01102985]
[1768007845473,0.0002,90669.0,90662.0,0.01087998]
[1768007845807,0.0002,90669.0,90663.0,0.01102985]
[1768007846018,0.0002,90669.0,90662.0,0.01087998]
[1768007846161,0.0002,90669.0,90663.0,0.01102985]
[1768007846372,0.0002,90669.0,90662.0,0.01087998]
[1768007846687,0.0002,90669.0,90663.0,0.01102985]
[1768007847601,0.0002,90669.0,90662.0,0.01087998]
[1768007848030,0.0002,90669.0,90663.0,0.01102985]
[1768007848408,0.0002,90669.0,90665.0,0.01102961]
[1768007848609,0.0002,90669.0,90664.0,0.01102973]
[1768007848975,0.0002,90669.0,90663.0,0.01102985]
[1768007849185,0.0002,90669.0,90662.0,0.01087998]
[1768007849385,0.0302,90669.0,90663.0,0.01102985]
[1768007850449,0.0002,90669.0,90663.0,0.01102985]
[1768007851860,0.0002,90669.0,90662.0,0.01087998]
[1768007852287,0.0002,90669.0,90663.0,0.01102985]
[1768007853505,0.0002,90669.0,90663.0,0.06091217]
[1768007853881,0.0002,90669.0,90665.0,0.04988232]
[1768007854067,0.0002,90669.0,90665.0,0.04981421]
[1768007857591,0.00010991,90669.0,90665.0,0.04981421]
[1768007858726,0.00010991,90669.0,90668.0,0.10502856]
[1768007858931,0.0883441,90676.0,90670.0,0.011029]
[1768007859128,0.0002,90679.0,90669.0,0.06091144]
[1768007859443,0.0002,90679.0,90670.0,0.011029]
[1768007859652,0.0002,90679.0,90669.0,0.04988232]
[1768007859848,0.0002,90679.0,90669.0,0.06091144]
[1768007860087,0.0002,90679.0,90668.0,0.01102924]
[1768007860088,0.04738945,90678.0,90668.0,0.01102924]
[1768007860297,0.07738945,90677.0,90669.0,0.01102912]
[1768007860700,0.07738945,90677.0,90668.0,0.01102924]
[1768007861708,0.07738945,90677.0,90665.0,0.03310961]
[1768007861909,0.03,90675.0,90666.0,0.01102949]
[1768007862130,0.03,90675.0,90665.0,0.03310961]
[1768007862472,0.03,90675.0,90666.0,0.01102949]
[1768007862674,0.03,90675.0,90667.0,0.01102937]
[1768007862873,0.03,90674.0,90669.0,0.01102912]
[1768007863259,0.03,90674.0,90667.0,0.01102937]
[1768007863674,0.03,90674.0,90668.0,0.04988232]
[1768007863874,0.03,90673.0,90670.0,0.04988232]
[1768007865102,0.0002,90679.0,90670.0,0.04988232]
[1768007866494,0.0002,90679.0,90671.0,0.0609112]
[1768007866700,0.0002,90682.0,90679.0,0.04988232]
[1768007866900,0.0002,90682.0,90679.0,0.04981421]
[1768007867691,0.00015892,90682.0,90679.0,0.04981421]
[1768007868338,0.03015892,90682.0,90679.0,0.04881521]
[1768007869274,0.03,90681.0,90679.0,0.04881521]
[1768007869968,0.03,90679.0,90668.0,0.04762841]
[1768007870153,0.04102791,90679.0,90668.0,0.04762841]
[1768007870362,0.03,90677.0,90668.0,0.04762841]
[1768007871381,0.03,90676.0,90668.0,0.04762841]
[1768007872462,0.03,90675.0,90668.0,0.04762841]
[1768007873477,0.03,90674.0,90668.0,0.04762841]
[1768007874636,0.03,90673.0,90668.0,0.04762841]
[1768007874834,0.01118646,90682.0,90668.0,0.05865765]
[1768007875713,0.03,90680.0,90668.0,0.04762841]
[1768007875942,0.03,90680.0,90669.0,0.04762841]
[1768007877033,0.03,90679.0,90669.0,0.04762841]
[1768007878167,0.03,90680.0,90669.0,0.04762841]
[1768007878828,0.03,90680.0,90668.0,0.01102924]
[1768007879452,0.03,90679.0,90668.0,0.01102924]
[1768007879820,0.03,90679.0,90669.0,0.01102912]
[1768007880271,0.03,90679.0,90668.0,0.01102924]
[1768007880466,0.03,90678.0,90669.0,0.01102912]
[1768007880830,0.03,90678.0,90670.0,0.011029]
[1768007881086,0.03,90678.0,90672.0,0.05865717]
[1768007881515,0.03,90677.0,90672.0,0.04762841]
[1768007881720,0.03,90677.0,90672.0,0.05865717]
[1768007882322,0.03,90677.0,90672.0,0.04762841]
[1768007882503,0.00015892,90682.0,90672.0,0.04762841]
[1768007883285,0.03,90681.0,90664.0,0.05514851]
[1768007883490,0.03,90681.0,90670.0,0.011029]
[1768007883694,0.03,90681.0,90671.0,0.01102888]
[1768007883897,0.03,90681.0,90670.0,0.011029]
[1768007884109,0.03,90681.0,90671.0,0.01102888]
[1768007884319,0.03,90680.0,90671.0,0.01102888]
[1768007885396,0.03,90679.0,90671.0,0.01102888]
[1768007885516,0.03,90677.0,90671.0,0.01102888]
[1768007886171,0.03,90675.0,90672.0,0.01102876]
[1768007886575,0.07900415,90675.0,90672.0,0.01102876]
[1768007886770,0.04900415,90681.0,90675.0,0.000999]
[1768007887175,0.07900415,90680.0,90673.0,0.01102864]
[1768007890674,0.03,90679.0,90673.0,0.04901337]
[1768007891567,0.00015892,90682.0,90673.0,0.06004201]
[1768007892529,0.00015892,90682.0,90674.0,0.01102851]
[1768007893160,0.00015892,90682.0,90676.0,0.01102827]
[1768007893400,0.00015892,90682.0,90675.0,0.01102839]
[1768007894966,0.00015892,90682.0,90676.0,0.01102827]
[1768007895228,0.00015892,90682.0,90675.0,0.01102839]
[1768007897314,0.03,90678.0,90675.0,0.01102839]
[1768007897499,0.03,90676.0,90675.0,0.01102839]
[1768007898504,0.04900415,90677.0,90675.0,0.01102839]
[1768007899266,0.00015892,90682.0,90676.0,0.01102827]
[1768007899267,0.07900415,90681.0,90676.0,0.01102827]
[1768007899448,0.03,90681.0,90677.0,0.04901337]
[1768007899800,0.03,90681.0,90676.0,0.01102827]
[1768007900249,0.00015892,90682.0,90676.0,0.01102827]
[1768007900785,0.00015892,90682.0,90675.0,0.01102839]
[1768007901314,0.00015892,90682.0,90676.0,0.01102827]
[1768007903161,0.00015892,90682.0,90674.0,0.04901337]
[1768007903371,0.00015892,90682.0,90674.0,0.06004188]
[1768007904056,0.00015892,90682.0,90675.0,0.01102839]
[1768007904271,0.00015892,90682.0,90675.0,0.06004176]
[1768007904476,0.00015892,90682.0,90676.0,0.01102827]
[1768007904680,0.00015892,90682.0,90678.0,0.04901337]
[1768007908804,0.00015892,90682.0,90675.0,0.01102839]
[1768007909012,0.00015892,90682.0,90676.0,0.01102827]
[1768007909410,0.03015892,90682.0,90676.0,0.01102827]
[1768007909830,0.03015892,90682.0,90674.0,0.05953083]
[1768007910038,0.03015892,90682.0,90676.0,0.01102827]
[1768007910211,0.03015892,90682.0,90677.0,0.04901337]
[1768007910420,0.03015892,90682.0,90677.0,0.06004152]
[1768007910629,0.03,90681.0,90677.0,0.06004152]
[1768007911548,0.03,90680.0,90677.0,0.04901337]
[1768007911744,0.00015892,90682.0,90677.0,0.04901337]
[1768007911745,0.00015892,90682.0,90678.0,0.01102803]
[1768007911950,0.00015892,90682.0,90680.0,0.05001237]
[1768007912422,0.00015892,90682.0,90680.0,0.04901337]
[1768007913255,0.0002,90691.0,90684.0,0.06079219]
[1768007913454,0.00026224,90691.0,90685.0,0.06079207]
[1768007913582,0.00026224,90691.0,90687.0,0.04976489]
[1768007918180,0.00026224,90691.0,90622.0,2.23894655]
[1768007918181,0.011029,90670.0,90661.0,0.09940961]
[1768007918405,0.08754351,90662.0,90660.0,0.0001493]
[1768007918620,0.05515281,90658.0,90652.0,0.00039]
[1768007918839,0.03,90654.0,90652.0,0.00039]
[1768007919475,0.03,90654.0,90652.0,0.00074271]
[1768007919899,0.03,90653.0,90652.0,0.00074271]
[1768007920992,0.03,90658.0,90652.0,0.00074271]
[1768007921193,0.01103058,90657.0,90652.0,0.00074271]
[1768007921472,0.03,90656.0,90652.0,0.00074271]
[1768007921743,0.03,90654.0,90652.0,0.00074271]
[1768007922981,0.03,90654.0,90650.0,0.02208]
[1768007922982,0.04103107,90653.0,90650.0,0.01044304]
[1768007923179,0.04138378,90653.0,90650.0,0.01044304]
[1768007923500,0.03,90651.0,90650.0,0.01044304]
[1768007924029,0.04103131,90651.0,90643.0,0.07184489]
[1768007924232,0.03,90647.0,90644.0,0.04976489]
[1768007926531,0.03,90645.0,90642.0,0.0001493]
[1768007926915,0.09619247,90645.0,90642.0,0.00010424]
[1768007927115,0.09619247,90645.0,90638.0,0.02208]
[1768007927116,0.07908142,90639.0,90638.0,0.02208]
[1768007927258,0.01103216,90644.0,90639.0,0.000999]
[1768007927259,0.04908142,90644.0,90639.0,0.000999]
[1768007927457,0.01103229,90643.0,90639.0,0.000999]
[1768007927653,0.01103229,90643.0,90638.0,0.02208]
[1768007928081,0.03,90644.0,90634.0,0.0001493]
[1768007928480,0.03,90642.0,90634.0,0.0001493]
[1768007928885,0.03,90642.0,90634.0,0.04991419]
[1768007929099,0.03,90642.0,90634.0,0.04985779]
[1768007929476,0.03,90641.0,90634.0,0.04985779]
[1768007930665,0.03,90640.0,90634.0,0.04985779]
[1768007931199,0.03,90640.0,90634.0,9.29e-05]
[1768007931657,0.03,90639.0,90634.0,9.29e-05]
[1768007932158,0.01103204,90645.0,90639.0,0.000999]
[1768007932358,0.01103192,90646.0,90639.0,0.000999]
[1768007932895,0.03,90645.0,90634.0,9.29e-05]
[1768007933813,0.03,90644.0,90634.0,9.29e-05]
[1768007934566,0.29298076,90644.0,90634.0,9.29e-05]
[1768007935023,0.03,90644.0,90634.0,9.29e-05]
[1768007935612,0.04103216,90644.0,90634.0,9.29e-05]
[1768007936228,0.03,90642.0,90634.0,9.29e-05]
[1768007936399,0.03,90642.0,90634.0,0.04765597]
[1768007936982,0.03,90642.0,90634.0,0.04750598]
[1768007937367,0.03,90645.0,90634.0,0.04750598]
[1768007937760,0.04103204,90645.0,90634.0,0.04750598]
[1768007939276,0.03,90645.0,90634.0,0.04750598]
[1768007939896,0.03,90643.0,90634.0,0.04750598]
[1768007940879,0.01103192,90646.0,90634.0,0.04750598]
[1768007940880,0.03,90642.0,90634.0,0.04750598]
[1768007941952,0.03,90643.0,90634.0,0.06958598]
[1768007945485,0.04103229,90643.0,90634.0,0.06958598]
[1768007945756,0.03,90643.0,90634.0,0.06958598]
[1768007949308,0.03,90641.0,90634.0,0.06958598]
[1768007949743,0.03,90638.0,90634.0,0.06958598]
[1768007950927,0.03,90642.0,90634.0,0.06958598]
[1768007951987,0.03,90641.0,90634.0,0.06958598]
[1768007953175,0.27401292,90644.0,90634.0,0.06958598]
[1768007953176,0.03,90640.0,90634.0,0.06958598]
[1768007954170,0.03,90639.0,90634.0,0.06958598]
[1768007955146,0.03,90638.0,90634.0,0.06958598]
[1768007956209,0.03,90637.0,90634.0,0.06954092]
[1768007957207,0.03,90636.0,90634.0,0.06954092]
[1768007958198,0.03,90643.0,90634.0,0.06954092]
[1768007959528,0.03,90643.0,90634.0,0.06949586]
[1768007959705,0.29298076,90644.0,90634.0,0.06949586]
[1768007959905,0.30401292,90644.0,90634.0,0.06949586]
[1768007960309,0.03,90641.0,90634.0,0.06949586]
[1768007961173,0.03,90641.0,90634.0,0.02208]
[1768007961316,0.03,90640.0,90634.0,0.02208]
[1768007962219,0.03,90643.0,90634.0,0.02208]
[1768007962641,0.04103229,90643.0,90634.0,0.02208]
[1768007962982,0.03,90641.0,90634.0,0.02208]
[1768007964175,0.03,90642.0,90634.0,0.02208]
[1768007964355,0.04103241,90642.0,90634.0,0.02208]
[1768007964801,0.04103241,90642.0,90634.0,0.02203494]
[1768007965005,0.03,90640.0,90634.0,0.02203494]
[1768007966105,0.03,90639.0,90634.0,0.02198988]
[1768007967138,0.03,90641.0,90634.0,0.02198988]
[1768007969348,0.03,90640.0,90634.0,0.02198988]
[1768007970259,0.03,90642.0,90634.0,0.02198988]
[1768007974213,0.03,90640.0,90634.0,0.02198988]
[1768007975170,0.03,90639.0,90634.0,0.02198988]
[1768007976293,0.03,90644.0,90634.0,0.02198988]
[1768007977004,0.07622116,90636.0,90634.0,0.02198988]
[1768007977182,0.03,90636.0,90634.0,0.02198988]
[1768007978022,0.03,90638.0,90634.0,0.02198988]
[1768007978977,0.03,90637.0,90634.0,0.02198988]
[1768007979999,0.03,90636.0,90634.0,0.02198988]
[1768007980168,0.01103204,90645.0,90637.0,0.000999]
[1768007980375,0.01103192,90646.0,90634.0,0.02198988]
[1768007981133,0.04103204,90645.0,90634.0,0.02198988]
[1768007981355,0.03,90645.0,90635.0,0.04573557]
[1768007982191,0.0883441,90647.0,90635.0,0.04573557]
[1768007982192,0.03,90646.0,90635.0,0.04573557]
[1768007984079,0.03,90646.0,90635.0,0.05676883]
[1768007984238,0.03,90643.0,90635.0,0.04573557]
[1768007984442,0.03,90643.0,90635.0,0.05676883]
[1768007985239,0.03,90642.0,90635.0,0.04573557]
[1768007986259,0.03,90645.0,90635.0,0.04573557]
[1768007988691,0.03,90645.0,90634.0,0.02198988]
[1768007988901,0.03,90644.0,90634.0,0.02198988]
[1768007990166,0.03,90646.0,90634.0,0.03302326]
[1768007991183,0.03,90646.0,90634.0,0.02198988]
[1768007991397,0.03,90646.0,90634.0,0.03302326]
[1768007992394,0.03,90646.0,90635.0,0.01103326]
[1768007994594,0.03,90646.0,90634.0,0.03302326]
[1768007995361,0.03,90646.0,90635.0,0.01103326]
[1768007996350,0.03,90646.0,90636.0,0.01103314]
[1768007996615,0.03,90646.0,90635.0,0.01103326]
[1768007996970,0.03,90646.0,90634.0,0.02198988]
[1768007997171,0.03,90642.0,90634.0,0.02198988]
[1768007997661,0.03,90640.0,90634.0,0.02198988]
[1768007998684,0.03,90639.0,90635.0,0.04642175]
[1768007999509,0.03,90639.0,90635.0,0.0463767]
[1768007999715,0.03,90638.0,90635.0,0.0463767]
[1768008000115,0.03,90638.0,90635.0,0.0462268]
[1768008001250,0.03,90637.0,90635.0,0.0462268]
[1768008002354,0.03,90637.0,90634.0,0.02198988]
[1768008002355,0.03,90640.0,90634.0,0.02198988]
[1768008002566,0.07596662,90640.0,90634.0,0.02198988]
[1768008002781,0.07596662,90640.0,90627.0,9.1e-05]
[1768008002782,0.07596662,90634.0,90627.0,0.022171]
[1768008002934,0.01103241,90642.0,90627.0,0.022171]
[1768008002935,0.03,90629.0,90627.0,0.022171]
[1768008003302,0.0494251,90631.0,90627.0,0.022171]
[1768008003510,0.01103375,90631.0,90627.0,0.022171]
[1768008003909,0.0883441,90632.0,90627.0,0.022171]
[1768008004149,0.03,90631.0,90627.0,0.022171]
[1768008008269,0.0883441,90632.0,90631.0,0.000999]
[1768008008707,0.0883441,90632.0,90627.0,0.022171]
[1768008013858,0.0883441,90632.0,90628.0,0.04653054]
[1768008014184,0.0883441,90632.0,90627.0,0.022171]
[1768008022379,0.0883441,90632.0,90627.0,0.02212595]
[1768008026723,0.0883441,90632.0,90627.0,0.0220809]
[1768008034906,0.0883441,90632.0,90627.0,0.07015342]
[1768008035138,0.03,90640.0,90632.0,0.000999]
[1768008035343,0.03,90640.0,90631.0,0.05910627]
[1768008035551,0.03,90640.0,90631.0,0.04807252]
[1768008035936,0.03,90640.0,90631.0,0.05910627]
[1768008036300,0.03,90640.0,90631.0,0.04807252]
[1768008036493,0.03,90640.0,90631.0,0.05910627]
[1768008037530,0.03,90640.0,90631.0,0.04807252]
[1768008038261,0.03,90640.0,90631.0,0.05910627]
[1768008038407,0.03,90640.0,90631.0,0.04807252]
[1768008038755,0.03,90640.0,90631.0,0.05910627]
[1768008039762,0.03,90640.0,90630.0,0.01103387]
[1768008039763,0.03,90640.0,90637.0,0.01103302]
[1768008040386,0.03,90640.0,90637.0,0.066198]
[1768008040828,0.03,90645.0,90637.0,0.01103302]
[1768008041026,0.03,90645.0,90633.0,0.0110335]
[1768008041225,0.03,90642.0,90633.0,0.0110335]
[1768008041423,0.03,90642.0,90632.0,0.01103363]
[1768008041831,0.03,90642.0,90633.0,0.0110335]
[1768008045516,0.03,90641.0,90633.0,0.0110335]
[1768008047417,0.03,90640.0,90633.0,0.0110335]
[1768008048340,0.03,90639.0,90633.0,0.0110335]
[1768008049288,0.03,90638.0,90634.0,0.04807252]
[1768008049629,0.0883441,90647.0,90634.0,0.04807252]
[1768008049630,0.1104241,90647.0,90638.0,0.000999]
[1768008049812,0.1104241,90647.0,90634.0,0.0591059]
[1768008050171,0.1104241,90647.0,90635.0,0.01103326]
[1768008050371,0.03,90646.0,90634.0,0.0591059]
[1768008051559,0.03,90646.0,90635.0,0.01103326]
[1768008055348,0.03,90646.0,90636.0,0.01103314]
[1768008055563,0.03,90646.0,90642.0,0.01103241]
[1768008055746,0.03,90646.0,90641.0,0.01103253]
[1768008055950,0.03,90646.0,90642.0,0.01103241]
[1768008056163,0.03,90646.0,90641.0,0.01103253]
[1768008056389,0.03,90646.0,90640.0,0.01103265]
[1768008056603,0.03,90646.0,90641.0,0.01103253]
[1768008057265,0.03,90646.0,90639.0,0.01103277]
[1768008057508,0.03,90646.0,90635.0,0.04529871]
[1768008057711,0.03,90646.0,90614.0,0.33107227]
[1768008057712,0.03,90646.0,90639.0,0.01103277]
[1768008057915,0.03,90646.0,90638.0,0.0110329]
[1768008059228,0.03,90646.0,90637.0,0.04529871]
[1768008059460,0.03,90646.0,90637.0,0.05633173]
[1768008060395,0.03,90646.0,90638.0,0.0110329]
[1768008061454,0.03,90646.0,90637.0,0.05633173]
[1768008061455,0.0883441,90647.0,90646.0,0.000999]
[1768008061688,0.0883441,90647.0,90646.0,0.00095395]
[1768008062092,0.0883441,90647.0,90642.0,0.01103241]
[1768008062532,0.0883441,90647.0,90641.0,0.01103253]
[1768008062976,0.0883441,90647.0,90642.0,0.01103241]
[1768008063156,0.0883441,90647.0,90641.0,0.01103253]
[1768008063359,0.0883441,90647.0,90641.0,0.06619511]
[1768008063568,0.0883441,90647.0,90642.0,0.01103241]
[1768008064181,0.0883441,90647.0,90641.0,0.01103253]
[1768008064496,0.0883441,90647.0,90640.0,0.01103265]
[1768008064804,0.0001511,90649.0,90647.0,0.000954]
[1768008065001,0.0001511,90649.0,90647.0,0.05515896]
[1768008065225,0.0001511,90649.0,90648.0,0.05515841]
[1768008065428,0.0001511,90649.0,90647.0,0.05515902]
[1768008065851,1e-07,90649.0,90646.0,0.01103192]
[1768008066054,1e-07,90649.0,90647.0,0.05515854]
[1768008066258,1e-07,90649.0,90648.0,0.05515841]
[1768008067308,1e-07,90649.0,90646.0,0.01103192]
[1768008067715,1e-07,90649.0,90647.0,0.05515902]
[1768008067919,1e-07,90649.0,90648.0,0.04649086]
[1768008069080,1e-07,90649.0,90648.0,0.10164927]
[1768008070421,1e-07,90649.0,90648.0,0.04649086]
[1768008073173,1e-07,90649.0,90648.0,0.01336497]
[1768008074116,1e-07,90649.0,90648.0,0.06852338]
[1768008075535,1e-07,90649.0,90648.0,0.01336497]
[1768008075904,1e-07,90649.0,90648.0,0.06852338]
[1768008076337,1e-07,90649.0,90648.0,0.01336497]
[1768008076540,1e-07,90649.0,90648.0,0.06852338]
[1768008079797,1e-08,90653.0,90651.0,0.04649086]
[1768008080176,1e-08,90653.0,90652.0,0.10164684]
[1768008081106,1e-08,90653.0,90652.0,0.05591139]
[1768008081521,1e-08,90653.0,90652.0,0.05701451]
[1768008081984,1e-08,90653.0,90652.0,0.05515598]
[1768008084411,1e-08,90653.0,90652.0,0.05597629]
[1768008084830,1e-08,90653.0,90652.0,0.05515598]
[1768008085253,1e-08,90658.0,90657.0,0.05515293]
[1768008085458,1e-08,90658.0,90657.0,0.07723293]
[1768008086481,1e-08,90658.0,90657.0,0.12372379]
[1768008086948,0.000502,90664.0,90661.0,0.0110301]
[1768008087148,0.00060313,90664.0,90661.0,0.06618048]
[1768008087826,0.00060313,90664.0,90661.0,0.11267134]
[1768008088045,0.00060313,90664.0,90661.0,0.06618048]
[1768008088597,0.00060313,90664.0,90661.0,0.0110301]
[1768008088802,0.00060313,90664.0,90661.0,0.0661806]
[1768008089442,0.00060313,90664.0,90661.0,0.0110301]
[1768008090175,0.03,90662.0,90661.0,0.0110301]
[1768008090350,0.03,90662.0,90661.0,0.06618032]
[1768008090568,0.00039,90672.0,90665.0,0.01102961]